bitfinex/quotes_ETHUSD_20260106
["timestamp","ask_amount","ask_price","bid_price","bid_amount"]
[1767727121679,1.18382171,3224.4,3223.8,0.002]
[1767727121882,1.18282171,3224.3,3223.8,0.002]
[1767727123376,3.10154456,3224.2,3223.8,0.002]
[1767727123816,1.18282171,3224.3,3223.8,0.002]
[1767727124034,4.28435364,3224.3,3223.8,0.002]
[1767727124528,7.38588557,3224.3,3223.8,0.002]
[1767727124822,1.18282171,3224.2,3223.8,0.002]
[1767727126007,1.18282171,3224.2,3224.1,0.002]
[1767727126981,1.18282171,3224.2,3223.5,0.002]
[1767727127183,1.18282171,3224.2,3223.2,1.22723424]
[1767727128111,1.18282171,3224.0,3223.2,1.22723424]
[1767727129311,1.92143203,3224.0,3223.2,1.22723424]
[1767727130587,7.38648807,3223.9,3223.2,1.22723424]
[1767727137530,7.38648807,3223.9,3223.1,0.002]
[1767727137531,1.16492999,3223.8,3223.1,0.002]
[1767727137899,1.16492999,3223.8,3223.1,1.16910264]
[1767727138098,4.96112778,3223.7,3223.1,0.002]
[1767727138325,4.96112778,3223.7,3222.5,0.002]
[1767727138326,1.16492999,3223.5,3222.6,1.16710264]
[1767727138626,0.49611278,3223.6,3222.6,1.16710264]
[1767727139437,0.49711278,3223.6,3223.5,0.002]
[1767727139639,0.49711278,3223.6,3222.8,1.16710264]
[1767727139640,6.20443616,3223.5,3222.8,1.16710264]
[1767727139935,6.75026022,3223.5,3222.8,1.16710264]
[1767727140094,6.75026022,3223.5,3223.1,0.002]
[1767727142931,3.64804214,3223.5,3223.1,0.002]
[1767727143101,6.75026022,3223.5,3223.1,0.002]
[1767727143302,0.80254879,3223.4,3223.1,0.002]
[1767727144692,3.10241057,3223.3,3222.8,1.16710264]
[1767727144898,6.20482114,3223.3,3222.5,1.16637367]
[1767727145095,3.10241057,3223.3,3222.6,1.16437367]
[1767727146721,3.10241057,3223.3,3222.7,1.16437367]
[1767727149539,3.10237814,3223.4,3222.8,1.16437367]
[1767727149754,3.10222268,3223.5,3222.8,1.16437367]
[1767727149931,1.27522772,3223.6,3222.8,1.16437367]
[1767727149932,3.10316882,3223.6,3222.8,1.16437367]
[1767727150139,6.20533764,3223.6,3223.0,1.16437367]
[1767727151759,0.001,3223.3,3223.1,1.16437367]
[1767727152649,0.001,3223.3,3222.9,1.59310823]
[1767727152822,1.27522772,3223.3,3222.9,0.002]
[1767727153228,0.001,3223.3,3222.9,0.002]
[1767727153636,0.001,3223.3,3222.9,1.16637367]
[1767727154234,0.001,3223.6,3222.9,1.16637367]
[1767727154434,3.10314983,3223.6,3223.1,1.16437367]
[1767727154851,3.10314983,3223.6,3223.0,0.81831493]
[1767727155144,3.10314983,3223.6,3223.0,1.9826886]
[1767727155345,3.10314983,3223.6,3223.0,1.16437367]
[1767727155549,0.001,3223.6,3223.0,1.16437367]
[1767727155735,0.001,3223.6,3223.1,1.16437367]
[1767727159736,1.27522772,3223.6,3222.9,0.002]
[1767727160159,1.27522772,3223.6,3222.9,1.16637367]
[1767727161763,4.37735457,3223.6,3222.9,1.16637367]
[1767727162060,3.10312685,3223.6,3222.9,1.16637367]
[1767727162643,3.10312685,3223.6,3222.9,1.15219694]
[1767727163755,3.10312685,3223.6,3222.9,1.15419694]
[1767727163961,0.001,3223.6,3222.9,1.15419694]
[1767727164162,0.001,3223.3,3222.9,1.15419694]
[1767727164455,0.001,3223.3,3222.9,1.66100308]
[1767727167667,0.001,3223.3,3222.9,0.002]
[1767727167668,1.27522772,3223.3,3222.9,0.002]
[1767727168791,0.001,3223.3,3222.9,0.002]
[1767727169577,0.001,3223.3,3222.9,1.16637367]
[1767727169740,0.001,3223.6,3223.0,1.16437367]
[1767727170962,3.10313676,3223.6,3223.0,1.16437367]
[1767727172030,1.17406334,3223.5,3222.9,0.002]
[1767727173279,3.10231432,3223.4,3222.9,0.002]
[1767727173454,3.10231432,3223.4,3222.7,4.25786271]
[1767727173669,3.10231432,3223.4,3222.8,1.15962046]
[1767727176674,0.001,3223.3,3222.8,1.15962046]
[1767727178265,0.001,3223.3,3222.9,1.15962046]
[1767727182189,0.001,3223.3,3222.7,1.15962046]
[1767727182489,6.20582114,3223.3,3222.7,1.15962046]
[1767727182657,3.10341057,3223.3,3222.7,1.15962046]
[1767727184275,6.20582114,3223.3,3222.7,1.15962046]
[1767727184589,3.10341057,3223.3,3222.7,1.15962046]
[1767727188381,0.001,3223.1,3222.7,1.15962046]
[1767727190364,0.001,3223.1,3222.7,1.66729064]
[1767727191598,0.001,3223.1,3222.8,1.15962046]
[1767727192067,0.001,3223.1,3222.5,1.16162046]
[1767727192264,0.001,3223.1,3222.5,5.07679881]
[1767727193002,0.001,3223.1,3222.6,1.15962046]
[1767727199906,0.001,3222.8,3222.6,1.15962046]
[1767727200111,0.001,3222.8,3222.6,1.66729809]
[1767727201507,0.001,3223.1,3222.6,1.66729809]
[1767727202705,1.22935125,3223.0,3222.5,0.002]
[1767727204609,4.33205422,3223.0,3222.5,0.002]
[1767727205513,7.43475719,3223.0,3222.5,0.002]
[1767727206340,1.22935125,3222.9,3222.5,0.002]
[1767727207108,4.33219442,3222.9,3222.5,0.002]
[1767727208916,7.43503759,3222.9,3222.5,0.002]
[1767727211790,1.22935125,3222.8,3222.5,0.002]
[1767727212197,1.22935125,3222.8,3222.1,0.814]
[1767727212508,0.001,3223.3,3222.6,1.20448723]
[1767727212698,0.001,3223.6,3223.1,1.20448723]
[1767727213029,3.10316763,3223.6,3223.1,1.20448723]
[1767727213222,0.001,3223.6,3223.1,1.20448723]
[1767727214426,1.23035125,3223.6,3222.8,4.30734219]
[1767727214621,1.23035125,3223.6,3222.9,0.51193422]
[1767727214829,0.001,3223.6,3223.0,1.20448723]
[1767727215698,1.23035125,3223.6,3222.9,3.61472143]
[1767727216304,1.23035125,3223.6,3222.8,1.20448723]
[1767727216305,1.22935125,3223.5,3222.1,1.20648723]
[1767727216523,1.22935125,3223.5,3222.3,3.10331784]
[1767727216726,1.22935125,3223.5,3222.3,1.20448723]
[1767727216894,1.22935125,3223.5,3222.4,1.20448723]
[1767727217515,1.22935125,3223.5,3222.2,3.91537846]
[1767727217516,1.22935125,3223.5,3222.2,2.01648723]
[1767727217718,1.22935125,3223.3,3222.3,0.20184872]
[1767727218099,1.22935125,3223.3,3222.3,3.30518526]
[1767727218921,1.22935125,3223.1,3222.4,3.10324712]
[1767727219127,1.22935125,3223.1,3222.3,3.30518049]
[1767727220728,1.22935125,3223.1,3222.4,1.20448723]
[1767727221029,1.22935125,3223.1,3222.4,2.04700079]
[1767727222711,6.20482114,3223.3,3222.6,1.20448723]
[1767727222919,7.43417239,3223.3,3222.6,1.20448723]
[1767727223235,1.22935125,3223.2,3222.6,1.20448723]
[1767727224227,1.22935125,3223.2,3222.7,0.002]
[1767727224403,0.001,3222.8,3222.7,0.002]
[1767727225123,1.23035125,3222.8,3222.7,0.002]
[1767727225326,1.23035125,3222.8,3222.4,3.10523774]
[1767727225619,1.23035125,3222.8,3222.5,0.31052377]
[1767727226659,0.001,3222.8,3222.5,0.31052377]
[1767727227215,0.001,3222.8,3222.4,1.20648723]
[1767727228551,0.001,3222.8,3222.4,0.002]
[1767727233840,0.001,3222.8,3222.4,1.16622632]
[1767727235919,0.001,3222.8,3222.4,4.26948093]
[1767727236123,0.001,3222.8,3222.4,1.16622632]
[1767727236382,0.001,3222.8,3222.4,4.26949376]
[1767727236554,0.001,3222.8,3222.4,1.16622632]
[1767727237240,0.001,3222.8,3222.7,0.002]
[1767727241061,1.20352269,3222.8,3222.7,0.002]
[1767727242424,1.20252269,3222.7,3222.1,0.002]
[1767727243058,4.30560715,3222.6,3222.1,0.002]
[1767727243878,1.20252269,3222.6,3222.1,0.002]
[1767727244654,3.1030215,3222.7,3222.1,0.002]
[1767727249046,1.20252269,3222.6,3222.1,0.002]
[1767727249666,0.74190791,3222.8,3222.1,1.16622632]
[1767727249965,3.10307015,3222.7,3222.4,0.002]
[1767727253572,6.2061403,3222.7,3222.4,0.002]
[1767727253741,4.30559284,3222.7,3222.4,0.002]
[1767727256085,1.20252269,3222.7,3222.4,0.002]
[1767727256296,4.30552915,3222.7,3222.4,0.002]
[1767727256982,7.40853561,3222.7,3222.4,0.002]
[1767727257163,8.14948917,3222.7,3222.4,0.002]
[1767727257655,5.04648271,3222.7,3222.4,0.002]
[1767727260476,0.74095356,3222.7,3222.4,0.002]
[1767727260676,3.1039584,3222.8,3222.7,0.00131876]
[1767727260883,1.20252269,3222.7,3222.4,0.002]
[1767727262589,4.23842072,3222.6,3222.4,0.002]
[1767727263302,1.13533626,3222.6,3222.4,0.002]
[1767727263602,4.28390745,3222.8,3222.4,0.002]
[1767727264194,7.38683802,3222.8,3222.4,0.002]
[1767727264400,1.17997688,3222.7,3222.4,0.002]
[1767727264597,3.10318076,3222.5,3222.4,0.002]
[1767727264806,1.17997688,3222.4,3221.9,0.002]
[1767727267422,3.10337336,3222.3,3221.9,0.002]
[1767727267806,3.10337336,3222.3,3221.8,0.002]
[1767727267807,6.20674672,3222.3,3221.8,0.002]
[1767727267977,6.20674672,3222.3,3221.5,0.002]
[1767727267978,1.17997688,3222.1,3221.5,0.002]
[1767727269306,1.17997688,3221.9,3221.5,0.002]
[1767727270306,6.20732464,3222.0,3221.1,1.18655335]
[1767727270307,1.17997688,3221.7,3221.1,0.002]
[1767727270606,1.79441102,3221.6,3221.1,0.002]
[1767727271108,6.20732464,3222.0,3221.2,1.18455335]
[1767727271109,4.2836392,3222.0,3221.2,1.18455335]
[1767727271514,7.38730152,3222.0,3221.2,1.18455335]
[1767727271689,1.17997688,3221.9,3221.2,1.18455335]
[1767727272702,1.17997688,3221.9,3221.1,0.002]
[1767727273409,1.17997688,3221.7,3221.1,0.002]
[1767727273613,1.17997688,3221.5,3221.1,0.002]
[1767727275606,1.17997688,3221.5,3221.4,0.002]
[1767727275804,7.38845766,3221.4,3221.1,0.002]
[1767727276700,1.17997688,3221.3,3221.0,0.002]
[1767727277211,3.10424039,3221.4,3221.0,0.002]
[1767727277376,0.62084042,3221.3,3221.0,0.002]
[1767727277580,1.8008173,3221.3,3221.0,0.002]
[1767727278311,3.72523425,3221.3,3221.0,0.002]
[1767727278610,0.62084042,3221.3,3221.0,0.002]
[1767727279380,3.72518418,3221.3,3221.0,0.002]
[1767727279587,0.37251842,3221.2,3221.0,0.002]
[1767727280287,0.37251842,3221.2,3220.5,1.18655335]
[1767727280288,4.28450638,3221.1,3220.5,1.18655335]
[1767727280498,7.38903588,3221.1,3220.5,1.18655335]
[1767727280704,4.28450638,3221.1,3220.5,1.18655335]
[1767727282898,7.38903588,3221.1,3220.5,1.18655335]
[1767727283223,0.77615543,3221.0,3220.5,1.18655335]
[1767727284807,0.77615543,3221.0,3220.5,0.002]
[1767727285263,3.10472228,3220.9,3220.5,0.002]
[1767727286925,3.10472228,3220.9,3220.2,0.002]
[1767727286926,1.17997688,3220.8,3220.2,0.002]
[1767727287350,7.38980704,3220.7,3220.2,0.002]
[1767727287544,1.17997688,3220.6,3220.2,0.002]
[1767727287767,0.7389807,3220.5,3220.2,0.002]
[1767727288051,0.7389807,3220.5,3220.0,0.002]
[1767727288052,1.17997688,3220.4,3220.0,0.002]
[1767727290255,0.7389807,3220.5,3220.0,0.002]
[1767727290558,3.10497246,3220.7,3220.0,1.18655335]
[1767727291661,1.18317088,3220.6,3220.0,0.002]
[1767727291953,4.2883752,3220.4,3220.0,0.002]
[1767727292128,1.18317088,3220.3,3220.0,0.002]
[1767727293563,1.18317088,3220.3,3219.6,0.002]
[1767727293760,1.18317088,3220.1,3219.6,0.002]
[1767727294562,1.18317088,3220.1,3219.4,1.1794798]
[1767727294733,1.92256019,3220.1,3219.4,1.1794798]
[1767727296062,3.10559006,3220.0,3219.4,1.1794798]
[1767727296263,4.28876094,3220.0,3219.4,1.1794798]
[1767727296489,1.18317088,3220.0,3219.4,1.1794798]
[1767727297164,1.18317088,3220.0,3219.2,0.002]
[1767727297165,1.18317088,3220.0,3219.2,1.1814798]
[1767727297360,1.9965348,3219.9,3219.2,1.1814798]
[1767727297663,1.18317088,3219.8,3219.2,0.002]
[1767727298159,1.62636392,3219.9,3219.2,1.1814798]
[1767727298334,3.10564571,3220.0,3219.2,1.1814798]
[1767727298534,4.28870834,3220.1,3219.2,1.1814798]
[1767727298737,1.18317088,3220.1,3219.2,1.1814798]
[1767727299132,4.2885185,3220.3,3219.2,1.1814798]
[1767727299455,3.10588123,3220.8,3219.5,1.1794798]
[1767727299456,5.10114858,3220.7,3219.5,1.1794798]
[1767727299631,3.10582739,3220.8,3219.7,1.1794798]
[1767727299837,3.91882739,3220.8,3219.7,1.1794798]
[1767727300055,3.10582739,3220.8,3219.9,1.1794798]
[1767727300260,1.18317088,3220.7,3219.9,1.1794798]
[1767727300569,1.18317088,3220.5,3219.7,1.1794798]
[1767727300974,1.18317088,3220.5,3219.8,1.1794798]
[1767727301278,0.73938257,3220.6,3219.8,1.1794798]
[1767727301942,3.84444969,3220.6,3219.8,4.28520538]
[1767727302142,3.84444969,3220.6,3219.9,1.1794798]
[1767727302670,0.73938257,3220.6,3219.9,1.1794798]
[1767727302968,1.18317088,3220.7,3219.9,1.1794798]
[1767727303671,3.10501285,3220.6,3219.9,1.1794798]
[1767727304030,4.2881251,3220.7,3219.9,1.1794798]
[1767727304161,0.814,3220.8,3219.9,1.1794798]
[1767727304162,0.001,3220.8,3220.2,1.1794798]
[1767727304466,6.41,3221.5,3220.5,1.1794798]
[1767727304467,1.18317088,3221.4,3220.5,1.1794798]
[1767727306853,1.18317088,3221.8,3220.6,1.1794798]
[1767727307059,5.1000416,3221.8,3220.8,1.1794798]
[1767727307275,1.18317088,3221.7,3220.8,1.1794798]
[1767727307483,0.82039123,3221.6,3220.8,1.1794798]
[1767727308381,3.10459115,3222.1,3221.4,1.1794798]
[1767727308382,0.001,3222.1,3221.4,1.1794798]
[1767727308584,0.001,3222.1,3221.4,1.1774798]
[1767727308786,0.001,3222.1,3221.6,3.10404767]
[1767727309086,0.001,3222.1,3221.7,1.1794798]
[1767727309290,0.814,3222.8,3222.1,1.1794798]
[1767727309484,3.91694221,3222.8,3222.1,1.1794798]
[1767727309655,0.001,3222.8,3222.1,1.1794798]
[1767727309864,3.10393617,3222.8,3222.1,1.1794798]
[1767727311083,0.001,3222.8,3222.1,1.1794798]
[1767727311279,0.62066215,3222.7,3222.1,1.1794798]
[1767727311671,1.80383303,3222.7,3221.8,1.1794798]
[1767727312488,1.80383303,3222.7,3221.9,3.10375262]
[1767727313184,1.18317088,3222.5,3221.8,4.28329082]
[1767727313697,1.18317088,3222.5,3221.8,5.09589898]
[1767727313854,1.18317088,3222.5,3221.9,1.1794798]
[1767727314590,1.18317088,3222.7,3221.9,1.1794798]
[1767727314758,4.28616527,3222.7,3221.9,1.1794798]
[1767727315359,4.28616527,3222.7,3221.9,4.28323159]
[1767727315591,4.28616527,3222.7,3222.0,1.1794798]
[1767727316564,1.18317088,3222.6,3222.0,1.1794798]
[1767727317595,4.31597275,3222.5,3221.8,3.91642842]
[1767727318006,1.21279199,3222.5,3221.8,5.10710436]
[1767727319089,1.21279199,3222.5,3221.9,3.10375824]
[1767727319476,1.21279199,3222.5,3221.9,1.19067594]
[1767727319675,4.31598495,3222.5,3221.9,1.19067594]
[1767727320384,1.21279199,3222.4,3221.5,4.29474595]
[1767727320584,1.21279199,3222.4,3221.0,3.10458761]
[1767727320585,1.21279199,3222.4,3221.4,3.91623067]
[1767727320769,1.21279199,3222.4,3221.6,3.10400424]
[1767727320966,1.21279199,3222.4,3221.5,3.10410732]
[1767727321896,1.1086652,3222.2,3221.5,3.10410732]
[1767727322097,1.1086652,3222.2,3221.5,3.92521817]
[1767727322394,1.1086652,3222.2,3221.4,0.812]
[1767727323388,1.1086652,3222.2,3221.3,3.10425028]
[1767727323596,1.1086652,3222.2,3221.3,3.10427887]
[1767727323911,1.1086652,3222.0,3221.2,0.812]
[1767727324113,1.1086652,3222.0,3220.8,1.12840014]
[1767727324327,1.1086652,3221.8,3220.9,3.1046703]
[1767727324488,0.73157972,3221.9,3221.1,1.12840014]
[1767727324689,0.73157972,3221.9,3221.7,0.002]
[1767727325714,1.1086652,3221.8,3221.7,0.002]
[1767727325919,1.1086652,3221.7,3221.4,0.002]
[1767727326119,1.1086652,3221.7,3220.7,1.12840014]
[1767727326428,1.1086652,3221.7,3220.8,1.12840014]
[1767727326996,1.1086652,3221.7,3220.5,3.91708376]
[1767727326997,3.28787947,3221.8,3221.0,1.12840014]
[1767727327218,3.28787947,3221.8,3221.1,1.12840014]
[1767727327624,1.1086652,3221.7,3220.6,1.12840014]
[1767727327785,0.75003997,3221.6,3220.8,1.12840014]
[1767727327980,0.75003997,3221.6,3220.7,1.12840014]
[1767727327981,1.1086652,3221.6,3220.7,1.12840014]
[1767727328214,1.1086652,3221.6,3220.6,0.19404001]
[1767727328215,1.1086652,3221.6,3221.0,1.12840014]
[1767727329004,3.10396975,3221.7,3221.0,1.12840014]
[1767727330408,3.10396975,3221.7,3221.1,1.12840014]
[1767727332980,4.39658979,3221.8,3221.1,1.12840014]
[1767727334592,3.28792459,3221.8,3221.1,1.12840014]
[1767727334919,7.24639338,3225.0,3221.1,1.12840014]
[1767727334920,1.1096652,3222.4,3221.2,1.12840014]
[1767727335120,3.10337336,3222.3,3221.2,1.12840014]
[1767727337081,3.10337336,3222.3,3221.4,1.12840014]
[1767727338094,0.001,3222.4,3221.4,1.12840014]
[1767727338300,0.001,3222.4,3221.6,1.12840014]
[1767727339112,0.001,3222.4,3221.5,1.54570736]
[1767727339113,0.001,3222.4,3221.8,1.12840014]
[1767727339899,4.21257485,3222.8,3222.1,1.12840014]
[1767727340884,3.10390965,3222.8,3222.1,1.12840014]
[1767727341595,0.001,3222.8,3222.2,1.12840014]
[1767727343296,0.001,3222.8,3222.3,1.12840014]
[1767727343499,1.1086652,3223.3,3222.6,1.12840014]
[1767727343701,3.1023843,3223.4,3222.7,1.12840014]
[1767727343896,6.20474957,3223.4,3222.7,1.12840014]
[1767727345521,7.31341477,3223.4,3222.7,1.12840014]
[1767727346133,6.20474957,3223.4,3222.7,1.12840014]
[1767727346626,7.31341477,3223.4,3222.7,1.12840014]
[1767727346927,1.1086652,3223.3,3222.5,1.12840014]
[1767727347127,1.1086652,3223.3,3222.6,1.12840014]
[1767727347627,3.10205235,3223.7,3222.5,0.42316496]
[1767727347628,1.1086652,3224.1,3222.8,1.12840014]
[1767727347833,1.1086652,3224.1,3223.0,1.12840014]
[1767727348427,1.1086652,3224.1,3222.7,10.12096451]
[1767727348428,1.1086652,3224.1,3223.2,1.12840014]
[1767727348628,4.21033255,3224.1,3223.4,1.12840014]
[1767727348828,1.1086652,3224.0,3223.3,0.73336063]
[1767727349051,3.10157047,3224.2,3223.3,0.73336063]
[1767727349052,3.10157047,3224.2,3223.4,1.12840014]
[1767727349203,4.21023567,3224.2,3223.4,1.12840014]
[1767727349603,7.31180614,3224.2,3223.4,1.12840014]
[1767727349829,1.1086652,3224.1,3223.4,1.39577622]
[1767727350604,0.001,3223.9,3223.4,1.39577622]
[1767727353623,1.19464815,3223.9,3222.9,1.15638879]
[1767727353802,1.19464815,3223.9,3223.0,1.15638879]
[1767727355018,3.1019294,3223.8,3223.1,1.15638879]
[1767727356039,6.2038588,3223.8,3223.1,1.15638879]
[1767727356347,4.29557755,3223.8,3223.1,1.15638879]
[1767727357906,7.39750695,3223.8,3223.1,1.15638879]
[1767727358209,4.29557755,3223.8,3223.1,1.15638879]
[1767727360137,7.39750695,3223.8,3223.1,1.15638879]
[1767727360546,4.29557755,3223.8,3223.1,1.15638879]
[1767727360746,4.29557755,3223.8,3223.0,3.10268486]
[1767727360747,1.19364815,3223.7,3222.6,1.15638879]
[1767727361448,1.19364815,3223.7,3222.5,3.10313483]
[1767727361449,1.19364815,3223.7,3222.4,0.814]
[1767727361644,1.19364815,3223.7,3222.4,0.002]
[1767727361821,1.19364815,3223.7,3222.4,1.15838879]
[1767727362020,1.19364815,3223.5,3222.4,1.15838879]
[1767727362222,1.19364815,3223.3,3222.4,1.15838879]
[1767727362423,1.19364815,3223.3,3222.4,0.002]
[1767727364227,1.19364815,3223.1,3222.0,0.002]
[1767727364437,1.19364815,3223.1,3222.0,1.15838879]
[1767727364649,1.19364815,3222.9,3222.0,1.15838879]
[1767727364948,1.19364815,3222.9,3222.0,4.26203757]
[1767727365133,1.19364815,3222.9,3222.1,1.15638879]
[1767727366025,0.73986618,3223.0,3222.1,1.15638879]
[1767727366234,1.93351433,3223.0,3222.1,1.15638879]
[1767727366434,3.10289189,3222.8,3222.1,1.15638879]
[1767727366752,3.10289189,3222.8,3222.1,4.25993471]
[1767727367139,3.10289189,3222.8,3222.1,1.15638879]
[1767727367935,4.29654004,3222.8,3222.1,1.15638879]
[1767727368634,4.29654004,3222.8,3222.1,4.25994928]
[1767727368828,4.29654004,3222.8,3222.1,1.15638879]
[1767727369923,8.23268727,3222.8,3222.1,1.15638879]
[1767727370124,1.19364815,3222.7,3222.1,1.15638879]
[1767727370752,4.29666934,3222.7,3222.1,1.15638879]
[1767727371533,1.19364815,3222.6,3222.0,0.002]
[1767727371754,1.9336172,3222.5,3222.0,0.002]
[1767727371958,1.19364815,3222.5,3222.0,0.002]
[1767727373229,7.40020227,3222.4,3222.0,0.002]
[1767727373627,4.29692521,3222.4,3222.0,0.002]
[1767727374831,4.29692521,3222.4,3222.3,0.002]
[1767727375031,4.29692521,3222.4,3222.0,0.002]
[1767727375342,5.03693557,3222.4,3222.0,0.002]
[1767727377362,1.20467596,3222.3,3222.0,0.002]
[1767727377559,0.74001036,3222.4,3222.0,0.002]
[1767727377744,1.20467596,3222.8,3222.0,1.14716331]
[1767727377943,1.20467596,3222.7,3222.0,0.002]
[1767727378242,1.20467596,3222.5,3222.0,0.002]
[1767727378773,4.30794329,3222.5,3222.0,0.002]
[1767727380277,3.10326733,3222.5,3222.0,0.002]
[1767727380664,6.20653466,3222.5,3222.0,0.002]
[1767727381566,1.12745198,3222.4,3222.0,0.002]
[1767727381873,1.86085064,3222.3,3222.0,0.002]
[1767727382449,0.73339866,3222.3,3222.0,0.002]
[1767727383046,3.10346967,3222.2,3222.0,0.002]
[1767727383270,3.10346967,3222.2,3221.5,1.19679671]
[1767727383271,1.12745198,3222.1,3221.5,1.19679671]
[1767727383653,1.12745198,3222.1,3221.2,1.19679671]
[1767727383849,1.12745198,3221.8,3221.1,0.002]
[1767727384148,1.12745198,3221.8,3221.0,1.19679671]
[1767727389777,2.04299154,3222.0,3221.1,1.227842]
[1767727389778,3.10380709,3221.9,3221.1,1.227842]
[1767727389954,1.12745198,3221.8,3221.1,1.19679671]
[1767727390155,1.12745198,3221.7,3220.9,1.19679671]
[1767727390481,1.12745198,3221.7,3220.8,0.814]
[1767727390482,1.12745198,3221.7,3221.0,4.30142232]
[1767727390855,1.12745198,3221.7,3221.0,1.19679671]
[1767727391372,1.12745198,3221.7,3220.8,1.19879671]
[1767727391591,1.12745198,3221.7,3220.8,0.002]
[1767727391772,1.12745198,3221.5,3220.8,0.002]
[1767727391976,1.12745198,3221.5,3220.8,1.19879671]
[1767727393655,4.23169038,3221.5,3220.8,1.19879671]
[1767727394488,7.33592878,3221.5,3220.8,1.19879671]
[1767727394782,1.12745198,3221.4,3220.8,1.19879671]
[1767727394984,0.73359288,3221.3,3220.8,0.002]
[1767727395581,0.73359288,3221.3,3220.8,1.19879671]
[1767727396074,3.83794219,3221.3,3220.8,1.19879671]
[1767727396275,0.73359288,3221.3,3220.8,1.19879671]
[1767727396484,1.32167784,3221.6,3220.9,1.22784393]
[1767727396677,7.52995348,3221.6,3220.9,1.19679671]
[1767727397894,4.42581566,3221.6,3220.9,1.19679671]
[1767727398098,4.42581566,3221.6,3220.8,3.10677084]
[1767727398099,1.12745198,3222.6,3221.1,1.19679671]
[1767727398269,9.30896451,3222.7,3221.1,1.227842]
[1767727398270,1.12745198,3222.4,3221.1,1.227842]
[1767727399061,1.12745198,3222.4,3221.1,1.19679671]
[1767727399787,0.001,3221.5,3221.3,1.19679671]
[1767727399985,0.001,3221.5,3221.4,1.62691969]
[1767727400194,0.001,3221.5,3221.4,1.19679671]
[1767727402091,0.001,3221.5,3221.2,1.19679671]
[1767727402291,0.001,3221.5,3221.3,1.19679671]
[1767727403774,0.001,3221.5,3221.3,4.30111926]
[1767727405191,4.23115071,3222.0,3221.3,4.30111926]
[1767727405192,1.12745198,3222.9,3221.5,1.19679671]
[1767727405508,1.12745198,3222.9,3221.3,9.34403941]
[1767727405509,1.12745198,3222.9,3221.8,1.19679671]
[1767727405999,1.12745198,3222.9,3221.7,1.19679671]
[1767727406873,1.12745198,3222.8,3221.8,6.20770996]
[1767727407096,1.12745198,3222.8,3221.9,1.19679671]
[1767727407287,1.12745198,3223.1,3221.9,1.19679671]
[1767727407461,1.12745198,3223.1,3222.1,1.19679671]
[1767727407662,1.12745198,3223.1,3222.2,0.812]
[1767727409114,1.12745198,3223.0,3222.3,3.10337336]
[1767727410196,1.12745198,3223.0,3222.2,3.91543287]
[1767727410714,1.12745198,3223.0,3222.2,0.812]
[1767727410875,1.12745198,3223.0,3219.7,1.67639146]
[1767727410876,1.12745198,3222.8,3221.9,3.91569446]
[1767727411073,4.23037091,3222.8,3221.9,5.11249117]
[1767727411277,1.12745198,3222.7,3222.0,4.30045903]
[1767727411891,1.12745198,3222.7,3222.0,1.19679671]
[1767727412093,1.12845198,3222.7,3222.0,1.19679671]
[1767727413212,1.17387867,3222.5,3221.6,0.61623208]
[1767727413373,1.17387867,3222.5,3221.7,1.9828912]
[1767727413579,1.17387867,3222.5,3221.8,4.2746948]
[1767727413793,1.17387867,3222.5,3221.9,1.1708912]
[1767727413998,3.10308446,3222.6,3221.9,1.1708912]
[1767727414996,3.10308446,3222.6,3221.9,4.274649]
[1767727415310,3.10308446,3222.6,3221.9,1.1708912]
[1767727420308,1.17387867,3222.5,3221.9,1.1708912]
[1767727420906,3.10308446,3222.6,3221.9,1.1708912]
[1767727420907,3.10308446,3222.6,3222.0,1.1708912]
[1767727421905,3.10398921,3222.7,3222.0,1.1708912]
[1767727422098,6.67714283,3222.7,3222.0,1.1708912]
[1767727423214,7.8510215,3222.7,3222.0,1.1708912]
[1767727423785,0.001,3222.3,3222.0,1.1708912]
[1767727423985,0.001,3222.3,3221.8,4.27471672]
[1767727425907,0.001,3222.3,3221.8,1.1708912]
[1767727427682,0.001,3222.3,3221.8,4.27473609]
[1767727428506,0.001,3222.3,3221.8,1.1708912]
[1767727429514,0.001,3222.3,3221.8,4.78341424]
[1767727431715,0.001,3222.3,3221.8,7.88726922]
[1767727431914,0.001,3222.3,3221.9,1.1708912]
[1767727433200,0.001,3222.3,3222.0,1.1708912]
[1767727435543,0.001,3222.3,3222.0,4.2745493]
[1767727435704,0.001,3222.3,3222.0,5.06325782]
[1767727436413,0.001,3222.3,3222.0,1.95959972]
[1767727436622,0.001,3222.3,3222.0,1.1708912]
[1767727437150,0.001,3222.3,3222.0,4.27452635]
[1767727437644,0.001,3222.3,3222.0,1.1708912]
[1767727438809,0.001,3222.3,3222.0,4.30557533]
[1767727439013,0.001,3222.3,3222.0,1.20192782]
[1767727439317,0.001,3222.3,3222.0,1.1708912]
[1767727439517,0.001,3222.3,3222.0,4.2745507]
[1767727439719,0.001,3222.3,3222.0,1.1708912]
[1767727439915,0.001,3222.3,3222.0,4.27453105]
[1767727440112,0.001,3222.3,3222.0,1.1708912]
[1767727440318,0.001,3222.3,3222.0,4.27454867]
[1767727440838,0.001,3222.3,3222.0,1.1708912]
[1767727441202,0.001,3222.3,3222.0,3.84150112]
[1767727441423,0.001,3222.7,3222.1,1.1572118]
[1767727441931,0.001,3222.7,3222.3,3.10337336]
[1767727442132,1.12617138,3222.8,3222.3,3.10337336]
[1767727442133,0.001,3223.9,3222.4,1.1572118]
[1767727442445,1.12717138,3223.5,3222.3,10.46733188]
[1767727442742,1.12617138,3223.4,3222.3,10.46733188]
[1767727442900,1.12617138,3223.4,3222.4,1.62440163]
[1767727443308,0.001,3223.9,3222.9,6.20559122]
[1767727443539,0.001,3223.9,3223.1,1.1572118]
[1767727444539,1.12717138,3223.9,3223.1,1.1572118]
[1767727445240,1.12717138,3223.9,3223.2,3.10250682]
[1767727445441,1.12717138,3223.9,3223.3,0.42597186]
[1767727445754,1.12717138,3223.9,3223.3,1.58318366]
[1767727445950,0.001,3223.9,3223.4,1.10438745]
[1767727446531,3.10283798,3223.9,3223.4,1.10438745]
[1767727446818,3.10283798,3223.9,3223.3,0.42597186]
[1767727447024,0.001,3223.9,3223.3,0.42597186]
[1767727447224,0.001,3223.9,3223.4,3.56559972]
[1767727447452,0.001,3223.9,3223.4,4.66998717]
[1767727447661,1.13850301,3224.4,3223.6,1.10438745]
[1767727447812,4.23985519,3224.4,3223.6,1.10438745]